Workbook

Sheet أعمال الحفر ومكافحة النمل
B1: القسم :02 أعمال أعمال الحفر ومكافحة النمل
K2: أريد كود يقوم بإلغاء دمج الخلايا من كل الشيت ثم يقوم بدمج كل صفين مع بعض وإنشاء صفحة جديدة ووضع البنود المدموجة فيها لتكون كالشكل التالى وهكذا لباقى البنود
B48: نموذج 1
B49: المملكة العربية السعودية -
B50: رقم المشروع | D50: تاريخ الإصدار | E50: أعمال الردم
D52: البند | E52: الوحدة | F52: الكمية | G52: السعر | H52: الإجمالي | I52: الملاحظات
B53: 01 | C53: 1 | D53: اولا : اعمال الحفر
C54: 1-1 | D54: بالمقطوعية حفر لزوم الأساسات حسب المقاسات والأبعاد الموضحة وتقرير الجسات حتى الوصول لمنسوب التأسيس المطلوب والبند يشمل تأمين وعمل الخنزيرة والدك وتسوية قاع الحفر على المنسوب المطلوب ونقل ناتج الحفر للمقالب العمومية والبند شامل كل مايلزم والمقاس هندسي.
D55: مما جميعة بالمتر المكعب | E55: مقطوعية | F55: 1 | G55: 5000 | H55: =F55*G55 -> 5000
D56: مكافحة النمل الأبيض
C57: 1-2 | D57: توريد و عمل رش مبيدات للنمل الأبيض من شركة معتمدة على أن يتم التغطية بطبقة بلاستيك عقب الرش مباشرة وأن يتم التنفيذ حسب الرسومات و المواصفات الفنية وأصول الصناعة و تعليمات المهندس المشرف.مما جميعة بالمتر المسطح لزوم الأساسات والخزان الأرضى. | E57: مقطوعية | F57: 1 | G57: 5000 | H57: =F57*G57 -> 5000
C58: 1-2-1 | D58: مما جميعة بالمتر المسطح لزوم الأساسات والخزان الأرضى. | E58: مقطوعية | F58: 1 | G58: 5000 | H58: =F58*G58 -> 5000
C59: إجمالي أعمال رش النمل | H59: =SUM(H58:H58) -> 5000

Sheet أعمال الردم
B1: القسم :02 أعمال الردم
B48: نموذج 1
B49: المملكة العربية السعودية -
B50: رقم المشروع | D50: تاريخ الإصدار | E50: أعمال الردم
D52: البند | E52: الوحدة | F52: الكمية | G52: السعر | H52: الإجمالي | I52: الملاحظات
B53: 02 | D53: ثانياً : اعمال الردم :
C54: 2-1 | D54: بالمتر المكعب توريد وردم برمال نظيفة للوصول لمنسوب التأسيس المطلوب أسفل الأساسات وحول وأعلى الأساسات وكذلك داخل المبنى وعلى طبقات لا تزيد عن 30 سم لكل طبقة مع الرش بالمياه والدمك الجيد باستخدام معدة دمك مناسبة وإجراء اختبارات الدمك اللازمة طبقا للأصول الفنية والمواصفات وتسوية السطح حتى منسوب أسفل أرضية الدور الأرضي والأرصفة طبقا للمناسيب الموضحة بالرسومات والمقاس هندسي.
C55: 2-1-1 | D55: مما جميعة بالمتر المكعب | E55: م3 | F55: 500 | G55: 30 | H55: =F55*G55 -> 15000
C56: إجمالي أعمال الردم | H56: =H55 -> 15000

Sheet أعمال الخرسانات
B1: القسم : 03 أعمال الخرسانات
B37: نموذج 1
B38: المملكة العربية السعودية
B39: رقم المشروع | D39: تاريخ الإصدار | E39: =#REF! -> 
D41: البند | E41: الوحدة | F41: الكمية | G41: السعر | H41: الإجمالي | I41: الملاحظات
B42: 03 | C42: 3 | D42: ثالثاً : اعمال الخرسانة
C43: 3-1 | D43: بالمتر المكعب – خرسانة عادية للأساسات طبقاً للرسومات وذات مقاومة مميزة للضغط لا تقل عن 200كجم / سم2 بعد 28 يوم من تاريخ الصب شاملا المصنعيات والشدات مع عمل جميع الاختبارات اللازمة على الخرسانة ومكوناتها طبقا للأصول الصناعة والمواصفات الفنية والقياس هندسي .
C44: 3-1-1 | D44: مما جميعة بالمتر المكعب لزوم الأساسات | E44: م3 | F44: 108 | G44: 310 | H44: =F44*G44 -> 33480
C45: 3-2 | D45: بالمتر المسطح توريد وعمل دكة خرسانة عادية سمك 12.50 سم وذلك لزوم ارضية الدور الارضى و الاجهاد حسب المخططات التصميمية و شبكة تسليح قطر 8مم مع خدمة السطح والمعالجة بالمياة والفئة تشمل كل ما يلزم لنهو الاعمال علي الوجة الاكمل طبقا للمواصفات وأصول الصناعه وتعليمات جهاز الاشراف.
C46: 3-2-1 | D46: مما جميعة بالمتر المسطح لزوم ارضية الدورالارضى . | E46: م2 | F46: 948 | G46: 72 | H46: =F46*G46 -> 68256
C47: 3-3 | D47: بالمتر المكعب توريد وصب خرسانة مسلحة ذات مقاومة مميزة للضغط اسطواني لا تقل عن 300كجم / سم2 بعد 28 يوم من تاريخ الصب وطبقا للرسومات الإنشائية والملاحظات الخاصة بها بما في ذلك نوع الأسمنت و صلب التسليح وسلك الرباط والخرسانة والمصنعية والشدات والعبوات الخشبية ولا يسمح بالصب الا بعد اعتماد المهندس المشرف للشدة والتسليح ولا تفك الشدات إلا بعد مضى المدة المقررة أو حسب تعليمات المهندس المشرف.
C48: 3-3-1 | D48: مما جميعة بالمتر المكعب لزوم الاساسات مقاوم. | E48: م3 | F48: 755 | G48: 842 | H48: =F48*G48 -> 635710
C49: 3-3-2 | D49: مما جميعة بالمتر المكعب لزوم السملات ورقاب الأعمدة مقاوم. | E49: م3 | F49: 39 | G49: 842 | H49: 32838
C50: 3-3-3 | D50: مما جميعة بالمتر المكعب لزوم الأعمدة وحوائط القص. | E50: م3 | F50: 351 | G50: 1078 | H50: 378378
C51: 3-3-4 | D51: مما جميعة بالمتر المكعب لزوم الأسقف. | E51: م3 | F51: 1286 | G51: 902 | H51: 1159972
C52: إجمالي أعمال الخرسانات | H52: =SUM(H44:H51) -> 2308634

Sheet أعمال المباني
B1: القسم : 04 أعمال المبانى
B47: نموذج 1
B48: المملكة العربية السعودية
B49: رقم المشروع | D49: تاريخ الإصدار
D51: البند | E51: الوحدة | F51: الكمية | G51: السعر | H51: الإجمالي | I51: الملاحظات
B52: 04 | C52: 4 | D52: رابعاً : اعمال المبانى
D53: يتم تنفيذ أعمال المباني طبقا للرسومات المعمارية للمشروع باستخدام الطوب الأحمر المفرغ وارد الخياط للحوائط الداخلية والخارجية وأعمال المباني الخارجية تشمل تنفيذ جدارين من البلك الأحمر بينهم فوم البوليسترين سمك 5 سم بكثافة 35 كجم/م3 بسماكة 5 سم ،وتراعى الأصول الفنية في أعمال تنفيذ المباني وذلك من حيث الرأسية والاستقامة والاستواء وتزود جميع الفتحات للأبواب والشبابيك بأربطة من الطوب المصمت وكما يجب ربط المباني مع الأعمدة الخرسانة باستخدام زوايا حديد مجلفن وكذلك تركيب شبك معدني كل أربعة مداميك للحوائط أطول من أربعة أمتار ومراعاة تحديد أماكن الفتحات بدقة طبقا للرسومات وتكون على مناسيب واحدة ويأخذ لها أشراب ثابتة كما يراعى الاهتمام بالمعالجة برش المياه 3 ايام وملئ الفراغات.ويراعى فى تنفيذ الأعتاب مقاس فتحات الأبواب والشبابيك وأن تكون مقاسات الأعتاب ونسبة الحديد متناسبة مع عروض الفتحات .
C54: 4-1 | D54: بالمتر المسطح توريد وتركيب بلوك أحمر (جدارين سمك الجدار الواحد 10 سم وبينهم فوم من البوليسترين سمك 5 سم بكثافة 35 كجم/م3 ) لزوم المباني الخارجية والمناور لتحقيق اشتراطات العزل الحراري طبقاً لكود البناء السعودي مع عمل المباني طبقاً للمواصفات مع استخدام طوب مصمت بركاني حول الأبواب والشبابيك بمونة 300 كجم أسمنت + 1م 3 رمل والسعر يشمل تركيب كانات كل 3 مداميك عند التقاء المباني مع الاعمدة الخرسانية ويتم تنفيذ أعمال المباني طبقا للرسومات والمواصفات الفنية وأصول الصناعة | E54: م2 | F54: 4090 | G54: 111 | H54: =F54*G54 -> 453990
C55: 4-2 | D55: بالمتر المسطح توريد وتركيب بلوك أحمر معزول سمك20سم 15 فتحة لزوم المباني الخارجية والمناور حسب الرسومات مع عمل المباني طبقاً للمواصفات مع استخدام طوب مصمت بركاني حول الأبواب والشبابيك بمونة 300 كجم أسمنت + 1م 3 رمل والسعر يشمل تركيب كانات كل 3 مداميك عند التقاء المباني مع الاعمدة الخرسانية ويتم تنفيذ أعمال المباني طبقا للرسومات والمواصفات الفنية وأصول الصناعة | E55: م2 | F55: 4090 | G55: 57 | I55: بند مرادف
C56: 4-3 | D56: بالمتر المسطح تركيب بلوك أحمر سمك 10سم لزوم المباني الداخلية حسب الرسومات مع عمل المباني طبقاً للمواصفات مع أستخدام طوب مصمت بركاني حول الأبواب والشبابيك بمونة 300 كجم أسمنت + 1م 3 رمل والسعر يشمل تركيب كانات كل 3 مداميك عند التقاء المباني مع الاعمدة الخرسانية ويتم تنفيذ أعمال المباني طبقا للرسومات والمواصفات الفنية وأصول الصناعة | E56: م2 | F56: 4173 | G56: 53 | H56: =F56*G56 -> 221169
D57: بالمتر المسطح توريد وتركيب ألواح خرسانية Hollow Core non load bearing walls لزوم أعمال المباني الداخلية سمك 10سم وارد شركة مصنعORAK أو ما يماثله في الجودة والسعر يشمل تركيب ما يلزم من الزوايا المعدنية (steel iron angles 250*40*2 cm) والخاصة بالتثبيت عند التقاء الألواح مع الاعمدة والبلاطات الخرسانية ويتم تنفيذ الأعمال طبقا للرسومات والمواصفات الفنية وأصول الصناعة | E57: م2 | F57: 4810 | G57: 125 | H57: 0
C58: 4-4 | D58: بالمتر الطولى توريد وتركيب بلوك أسمنتي سمك 20سم لدروة بيت الدرج والمصاعد بارتفاع 40 سم بمونة 300 كجم أسمنت + 1م 3 رمل مع عمل المباني والسعر يشمل تنفيذ الهيكل الخرساني والكمرة المقلوبة على الدائر المعماري طبقاً للرسومات والمواصفات الفنية. | E58: م.ط | F58: =9.5*2+17 -> 36 | G58: 115 | H58: =F58*G58 -> 4140
C59: 4-5 | D59: بالمتر الطولى توريد وتركيب بلوك أسمنتي سمك 20سم لدروة السطح والخارجات والاسطح العلوية بارتفاع 2.00م بمونة 300 كجم أسمنت + 1م 3 رمل للبنود مع عمل المباني والسعر يشمل تنفيذ الهيكل الخرساني والكمرة المقلوبة على الدائر المعماري طبقاً للرسومات والمواصفات الفنية. | E59: م.ط | F59: 200 | G59: 115 | H59: 23000
C60: 4-6 | D60: بالمتر المسطح لزوم مباني قصة الردم أسفل الحوائط الداخلية بلوك أسمنتى مصمت سمك 20 سم بمونة 300 كجم أسمنت + 1م 3 رمل | E60: م2 | F60: 360 | G60: 45 | H60: =F60*G60 -> 16200
C61: 4-7 | D61: بالمتر المسطح لزوم الحوائط الداخلية الفاصلة بين الواحدات السكنية بلك بركانى معزول 20 سم بمونة 300 كجم أسمنت + 1م 3 رمل والسعر يشمل تركيب كانات كل 3 مداميك عند التقاء المباني مع الاعمدة الخرسانية ويتم تنفيذ أعمال المباني طبقا للرسومات والمواصفات الفنية وأصول الصناعة | E61: م2 | F61: =387 -> 387 | G61: =57+10 -> 67 | H61: 25929
C62: إجمالي أعمال المبانى | H62: =SUM(H54:H61) -> 744428

Sheet تجميع الملفات
D1: البند | E1: الوحدة | F1: الكمية | G1: السعر | H1: الإجمالي | I1: الملاحظات
B2: 01 | C2: 1 | D2: اولا : اعمال الحفر
C3: 1-1 | D3: بالمقطوعية حفر لزوم الأساسات حسب المقاسات والأبعاد الموضحة وتقرير الجسات حتى الوصول لمنسوب التأسيس المطلوب والبند يشمل تأمين وعمل الخنزيرة والدك وتسوية قاع الحفر على المنسوب المطلوب ونقل ناتج الحفر للمقالب العمومية والبند شامل كل مايلزم والمقاس هندسي. مما جميعة بالمتر المكعب | E3: مقطوعية | F3: 1 | G3: 5000 | H3: =F3*G3 -> 5000
D4: مكافحة النمل الأبيض
C5: 1-2 | D5: توريد و عمل رش مبيدات للنمل الأبيض من شركة معتمدة على أن يتم التغطية بطبقة بلاستيك عقب الرش مباشرة وأن يتم التنفيذ حسب الرسومات و المواصفات الفنية وأصول الصناعة و تعليمات المهندس المشرف.مما جميعة بالمتر المسطح لزوم الأساسات والخزان الأرضى.مما جميعة بالمتر المسطح لزوم الأساسات والخزان الأرضى. | E5: مقطوعية | F5: 1 | G5: 5000 | H5: =F5*G5 -> 5000
